{"text_format":"3","workbook":"xlsx","n_sheets":1,"sheets":["Lagerliste"],"not_rendered":{"images":1,"defined_names":3},"read":"whole","date_system":"1900"}

{"sheet":"Lagerliste","index":0,"n_rows":28,"n_cols":13,"rows_kept":28}
[{"$nulls":12}," "]
[{"$nulls":10},"Vil du markere varer, der skal genbestilles?","Ja"]
[null,"Til genbestilling","Lager-id","Navn","Beskrivelse","Enhedspris","Lagerbeholdning","Lagerværdi","Genbestillingsniveau","Genbestillingstid i dage","Kvantitet ved genbestilling","Udgået?"]
[null,{"$f":"IFERROR((Inventory_List_Table[[#This Row],[Lagerbeholdning]]<=Inventory_List_Table[[#This Row],[Genbestillingsniveau]])*(Inventory_List_Table[[#This Row],[Udgået?]]=\"\")*værFremhæv,0)","v":1},"IN0001","Vare 1","Beskrivelse 1",{"v":51,"d":"kr. 51.00"},25,{"$f":"Inventory_List_Table[[#This Row],[Enhedspris]]*Inventory_List_Table[[#This Row],[Lagerbeholdning]]","v":{"v":1275,"d":"kr. 1,275.00"}},29,13,50]
[null,{"$f":"IFERROR((Inventory_List_Table[[#This Row],[Lagerbeholdning]]<=Inventory_List_Table[[#This Row],[Genbestillingsniveau]])*(Inventory_List_Table[[#This Row],[Udgået?]]=\"\")*værFremhæv,0)","v":1},"IN0002","Vare 2","Beskrivelse 2",{"v":93,"d":"kr. 93.00"},132,{"$f":"Inventory_List_Table[[#This Row],[Enhedspris]]*Inventory_List_Table[[#This Row],[Lagerbeholdning]]","v":{"v":12276,"d":"kr. 12,276.00"}},231,4,50]
[null,{"$f":"IFERROR((Inventory_List_Table[[#This Row],[Lagerbeholdning]]<=Inventory_List_Table[[#This Row],[Genbestillingsniveau]])*(Inventory_List_Table[[#This Row],[Udgået?]]=\"\")*værFremhæv,0)","v":0},"IN0003","Vare 3","Beskrivelse 3",{"v":57,"d":"kr. 57.00"},151,{"$f":"Inventory_List_Table[[#This Row],[Enhedspris]]*Inventory_List_Table[[#This Row],[Lagerbeholdning]]","v":{"v":8607,"d":"kr. 8,607.00"}},114,11,150]
[null,{"$f":"IFERROR((Inventory_List_Table[[#This Row],[Lagerbeholdning]]<=Inventory_List_Table[[#This Row],[Genbestillingsniveau]])*(Inventory_List_Table[[#This Row],[Udgået?]]=\"\")*værFremhæv,0)","v":0},"IN0004","Vare 4","Beskrivelse 4",{"v":19,"d":"kr. 19.00"},186,{"$f":"Inventory_List_Table[[#This Row],[Enhedspris]]*Inventory_List_Table[[#This Row],[Lagerbeholdning]]","v":{"v":3534,"d":"kr. 3,534.00"}},158,6,50]
[null,{"$f":"IFERROR((Inventory_List_Table[[#This Row],[Lagerbeholdning]]<=Inventory_List_Table[[#This Row],[Genbestillingsniveau]])*(Inventory_List_Table[[#This Row],[Udgået?]]=\"\")*værFremhæv,0)","v":0},"IN0005","Vare 5","Beskrivelse 5",{"v":75,"d":"kr. 75.00"},62,{"$f":"Inventory_List_Table[[#This Row],[Enhedspris]]*Inventory_List_Table[[#This Row],[Lagerbeholdning]]","v":{"v":4650,"d":"kr. 4,650.00"}},39,12,50]
[null,{"$f":"IFERROR((Inventory_List_Table[[#This Row],[Lagerbeholdning]]<=Inventory_List_Table[[#This Row],[Genbestillingsniveau]])*(Inventory_List_Table[[#This Row],[Udgået?]]=\"\")*værFremhæv,0)","v":1},"IN0006","Vare 6","Beskrivelse 6",{"v":11,"d":"kr. 11.00"},5,{"$f":"Inventory_List_Table[[#This Row],[Enhedspris]]*Inventory_List_Table[[#This Row],[Lagerbeholdning]]","v":{"v":55,"d":"kr. 55.00"}},9,13,150]
[null,{"$f":"IFERROR((Inventory_List_Table[[#This Row],[Lagerbeholdning]]<=Inventory_List_Table[[#This Row],[Genbestillingsniveau]])*(Inventory_List_Table[[#This Row],[Udgået?]]=\"\")*værFremhæv,0)","v":0},"IN0007","Vare 7","Beskrivelse 7",{"v":56,"d":"kr. 56.00"},58,{"$f":"Inventory_List_Table[[#This Row],[Enhedspris]]*Inventory_List_Table[[#This Row],[Lagerbeholdning]]","v":{"v":3248,"d":"kr. 3,248.00"}},109,7,100,"Ja"]
[null,{"$f":"IFERROR((Inventory_List_Table[[#This Row],[Lagerbeholdning]]<=Inventory_List_Table[[#This Row],[Genbestillingsniveau]])*(Inventory_List_Table[[#This Row],[Udgået?]]=\"\")*værFremhæv,0)","v":1},"IN0008","Vare 8","Beskrivelse 8",{"v":38,"d":"kr. 38.00"},101,{"$f":"Inventory_List_Table[[#This Row],[Enhedspris]]*Inventory_List_Table[[#This Row],[Lagerbeholdning]]","v":{"v":3838,"d":"kr. 3,838.00"}},162,3,100]
[null,{"$f":"IFERROR((Inventory_List_Table[[#This Row],[Lagerbeholdning]]<=Inventory_List_Table[[#This Row],[Genbestillingsniveau]])*(Inventory_List_Table[[#This Row],[Udgået?]]=\"\")*værFremhæv,0)","v":0},"IN0009","Vare 9","Beskrivelse 9",{"v":59,"d":"kr. 59.00"},122,{"$f":"Inventory_List_Table[[#This Row],[Enhedspris]]*Inventory_List_Table[[#This Row],[Lagerbeholdning]]","v":{"v":7198,"d":"kr. 7,198.00"}},82,3,150]
[null,{"$f":"IFERROR((Inventory_List_Table[[#This Row],[Lagerbeholdning]]<=Inventory_List_Table[[#This Row],[Genbestillingsniveau]])*(Inventory_List_Table[[#This Row],[Udgået?]]=\"\")*værFremhæv,0)","v":1},"IN0010","Vare 10","Beskrivelse 10",{"v":50,"d":"kr. 50.00"},175,{"$f":"Inventory_List_Table[[#This Row],[Enhedspris]]*Inventory_List_Table[[#This Row],[Lagerbeholdning]]","v":{"v":8750,"d":"kr. 8,750.00"}},283,8,150]
[null,{"$f":"IFERROR((Inventory_List_Table[[#This Row],[Lagerbeholdning]]<=Inventory_List_Table[[#This Row],[Genbestillingsniveau]])*(Inventory_List_Table[[#This Row],[Udgået?]]=\"\")*værFremhæv,0)","v":1},"IN0011","Vare 11","Beskrivelse 11",{"v":59,"d":"kr. 59.00"},176,{"$f":"Inventory_List_Table[[#This Row],[Enhedspris]]*Inventory_List_Table[[#This Row],[Lagerbeholdning]]","v":{"v":10384,"d":"kr. 10,384.00"}},229,1,100]
[null,{"$f":"IFERROR((Inventory_List_Table[[#This Row],[Lagerbeholdning]]<=Inventory_List_Table[[#This Row],[Genbestillingsniveau]])*(Inventory_List_Table[[#This Row],[Udgået?]]=\"\")*værFremhæv,0)","v":1},"IN0012","Vare 12","Beskrivelse 12",{"v":18,"d":"kr. 18.00"},22,{"$f":"Inventory_List_Table[[#This Row],[Enhedspris]]*Inventory_List_Table[[#This Row],[Lagerbeholdning]]","v":{"v":396,"d":"kr. 396.00"}},36,12,50]
[null,{"$f":"IFERROR((Inventory_List_Table[[#This Row],[Lagerbeholdning]]<=Inventory_List_Table[[#This Row],[Genbestillingsniveau]])*(Inventory_List_Table[[#This Row],[Udgået?]]=\"\")*værFremhæv,0)","v":1},"IN0013","Vare 13","Beskrivelse 13",{"v":26,"d":"kr. 26.00"},72,{"$f":"Inventory_List_Table[[#This Row],[Enhedspris]]*Inventory_List_Table[[#This Row],[Lagerbeholdning]]","v":{"v":1872,"d":"kr. 1,872.00"}},102,9,100]
[null,{"$f":"IFERROR((Inventory_List_Table[[#This Row],[Lagerbeholdning]]<=Inventory_List_Table[[#This Row],[Genbestillingsniveau]])*(Inventory_List_Table[[#This Row],[Udgået?]]=\"\")*værFremhæv,0)","v":1},"IN0014","Vare 14","Beskrivelse 14",{"v":42,"d":"kr. 42.00"},62,{"$f":"Inventory_List_Table[[#This Row],[Enhedspris]]*Inventory_List_Table[[#This Row],[Lagerbeholdning]]","v":{"v":2604,"d":"kr. 2,604.00"}},83,2,100]
[null,{"$f":"IFERROR((Inventory_List_Table[[#This Row],[Lagerbeholdning]]<=Inventory_List_Table[[#This Row],[Genbestillingsniveau]])*(Inventory_List_Table[[#This Row],[Udgået?]]=\"\")*værFremhæv,0)","v":0},"IN0015","Vare 15","Beskrivelse 15",{"v":32,"d":"kr. 32.00"},46,{"$f":"Inventory_List_Table[[#This Row],[Enhedspris]]*Inventory_List_Table[[#This Row],[Lagerbeholdning]]","v":{"v":1472,"d":"kr. 1,472.00"}},23,15,50]
[null,{"$f":"IFERROR((Inventory_List_Table[[#This Row],[Lagerbeholdning]]<=Inventory_List_Table[[#This Row],[Genbestillingsniveau]])*(Inventory_List_Table[[#This Row],[Udgået?]]=\"\")*værFremhæv,0)","v":1},"IN0016","Vare 16","Beskrivelse 16",{"v":90,"d":"kr. 90.00"},96,{"$f":"Inventory_List_Table[[#This Row],[Enhedspris]]*Inventory_List_Table[[#This Row],[Lagerbeholdning]]","v":{"v":8640,"d":"kr. 8,640.00"}},180,3,50]
[null,{"$f":"IFERROR((Inventory_List_Table[[#This Row],[Lagerbeholdning]]<=Inventory_List_Table[[#This Row],[Genbestillingsniveau]])*(Inventory_List_Table[[#This Row],[Udgået?]]=\"\")*værFremhæv,0)","v":0},"IN0017","Vare 17","Beskrivelse 17",{"v":97,"d":"kr. 97.00"},57,{"$f":"Inventory_List_Table[[#This Row],[Enhedspris]]*Inventory_List_Table[[#This Row],[Lagerbeholdning]]","v":{"v":5529,"d":"kr. 5,529.00"}},98,12,50,"Ja"]
[null,{"$f":"IFERROR((Inventory_List_Table[[#This Row],[Lagerbeholdning]]<=Inventory_List_Table[[#This Row],[Genbestillingsniveau]])*(Inventory_List_Table[[#This Row],[Udgået?]]=\"\")*værFremhæv,0)","v":1},"IN0018","Vare 18","Beskrivelse 18",{"v":12,"d":"kr. 12.00"},6,{"$f":"Inventory_List_Table[[#This Row],[Enhedspris]]*Inventory_List_Table[[#This Row],[Lagerbeholdning]]","v":{"v":72,"d":"kr. 72.00"}},7,13,50]
[null,{"$f":"IFERROR((Inventory_List_Table[[#This Row],[Lagerbeholdning]]<=Inventory_List_Table[[#This Row],[Genbestillingsniveau]])*(Inventory_List_Table[[#This Row],[Udgået?]]=\"\")*værFremhæv,0)","v":1},"IN0019","Vare 19","Beskrivelse 19",{"v":82,"d":"kr. 82.00"},143,{"$f":"Inventory_List_Table[[#This Row],[Enhedspris]]*Inventory_List_Table[[#This Row],[Lagerbeholdning]]","v":{"v":11726,"d":"kr. 11,726.00"}},164,12,150]
[null,{"$f":"IFERROR((Inventory_List_Table[[#This Row],[Lagerbeholdning]]<=Inventory_List_Table[[#This Row],[Genbestillingsniveau]])*(Inventory_List_Table[[#This Row],[Udgået?]]=\"\")*værFremhæv,0)","v":0},"IN0020","Vare 20","Beskrivelse 20",{"v":16,"d":"kr. 16.00"},124,{"$f":"Inventory_List_Table[[#This Row],[Enhedspris]]*Inventory_List_Table[[#This Row],[Lagerbeholdning]]","v":{"v":1984,"d":"kr. 1,984.00"}},113,14,50]
[null,{"$f":"IFERROR((Inventory_List_Table[[#This Row],[Lagerbeholdning]]<=Inventory_List_Table[[#This Row],[Genbestillingsniveau]])*(Inventory_List_Table[[#This Row],[Udgået?]]=\"\")*værFremhæv,0)","v":0},"IN0021","Vare 21","Beskrivelse 21",{"v":19,"d":"kr. 19.00"},112,{"$f":"Inventory_List_Table[[#This Row],[Enhedspris]]*Inventory_List_Table[[#This Row],[Lagerbeholdning]]","v":{"v":2128,"d":"kr. 2,128.00"}},75,11,50]
[null,{"$f":"IFERROR((Inventory_List_Table[[#This Row],[Lagerbeholdning]]<=Inventory_List_Table[[#This Row],[Genbestillingsniveau]])*(Inventory_List_Table[[#This Row],[Udgået?]]=\"\")*værFremhæv,0)","v":0},"IN0022","Vare 22","Beskrivelse 22",{"v":24,"d":"kr. 24.00"},182,{"$f":"Inventory_List_Table[[#This Row],[Enhedspris]]*Inventory_List_Table[[#This Row],[Lagerbeholdning]]","v":{"v":4368,"d":"kr. 4,368.00"}},132,15,150]
[null,{"$f":"IFERROR((Inventory_List_Table[[#This Row],[Lagerbeholdning]]<=Inventory_List_Table[[#This Row],[Genbestillingsniveau]])*(Inventory_List_Table[[#This Row],[Udgået?]]=\"\")*værFremhæv,0)","v":0},"IN0023","Vare 23","Beskrivelse 23",{"v":29,"d":"kr. 29.00"},106,{"$f":"Inventory_List_Table[[#This Row],[Enhedspris]]*Inventory_List_Table[[#This Row],[Lagerbeholdning]]","v":{"v":3074,"d":"kr. 3,074.00"}},142,1,150,"Ja"]
[null,{"$f":"IFERROR((Inventory_List_Table[[#This Row],[Lagerbeholdning]]<=Inventory_List_Table[[#This Row],[Genbestillingsniveau]])*(Inventory_List_Table[[#This Row],[Udgået?]]=\"\")*værFremhæv,0)","v":0},"IN0024","Vare 24","Beskrivelse 24",{"v":75,"d":"kr. 75.00"},173,{"$f":"Inventory_List_Table[[#This Row],[Enhedspris]]*Inventory_List_Table[[#This Row],[Lagerbeholdning]]","v":{"v":12975,"d":"kr. 12,975.00"}},127,9,100]
[null,{"$f":"IFERROR((Inventory_List_Table[[#This Row],[Lagerbeholdning]]<=Inventory_List_Table[[#This Row],[Genbestillingsniveau]])*(Inventory_List_Table[[#This Row],[Udgået?]]=\"\")*værFremhæv,0)","v":0},"IN0025","Vare 25","Beskrivelse 25",{"v":14,"d":"kr. 14.00"},28,{"$f":"Inventory_List_Table[[#This Row],[Enhedspris]]*Inventory_List_Table[[#This Row],[Lagerbeholdning]]","v":{"v":392,"d":"kr. 392.00"}},21,8,50]